Cogmind - Beta 9.6 @@@ ROGUE MODE // 2020.08.05 @ 17:31:20 Player: Mordroc Result: Destroyed by G-47 Trooper with Particle Gun Performance ------------- Evolutions (0) 0 Regions Visited (2) 400 Robots Destroyed (5) 25 Value Destroyed (128) 128 Prototype IDs (0) 0 Alien Tech Used (0) 0 Bonus (0) 0 TOTAL SCORE: 553 Bonus ------- None Cogmind --------- Core Integrity 0/250 Matter 300/300 Energy 100/100 System Corruption 1% Temperature Cool (9) Movement Core (150) Ox2 Location -10/Mines Parts ------- > --- POWER (1) -------- (None) > --- PROPULSION (2) --- (None) > --- UTILITY (2) ------ Medium Storage Unit Weapon Shielding > --- WEAPON (2) ------- (None) > --- INVENTORY (8) ---- Small Storage Unit Large Storage Unit Core Shielding Peak State ------------ > --- POWER ------------ Light Ion Engine > --- PROPULSION ------- Aluminum Leg Aluminum Leg > --- UTILITY ---------- Heat Sink Visual Processing Unit > --- WEAPON ----------- Small Laser Light Assault Rifle > --- INVENTORY -------- Light Ion Engine [Rating: 8] Favorites ----------- Power Light Ion Engine Engine Light Ion Engine Propulsion Aluminum Leg Leg Aluminum Leg Utility Medium Storage Unit Device Heat Sink Storage Medium Storage Unit Processor Visual Processing Unit Protection Weapon Shielding Weapon Light Assault Rifle Energy Gun Small Laser Ballistic Gun Light Assault Rifle Build | -11 -10 -10 ------- Run | Scr Mat Min Slots Evolved . | . . . Power . | . . . Propulsion . | . . . Utility . | . . . Weapon . | . . . Parts Attached 10 | 5 5 . Power 1 | 1 . . Engine 1 | 1 . . Core . | . . . Reactor . | . . . Propulsion 2 | 2 . . Treads . | . . . Leg 2 | 2 . . Wheel . | . . . Hover . | . . . Flight . | . . . Utility 4 | . 4 . Device 1 | . 1 . Storage 1 | . 1 . Processor 1 | . 1 . Hackware . | . . . Protection 1 | . 1 . Artifact . | . . . Weapon 3 | 2 1 . Energy Gun 2 | 1 1 . Energy Cannon . | . . . Ballistic Gun 1 | 1 . . Ballistic Cannon . | . . . Launcher . | . . . Special Weapon . | . . . Impact Weapon . | . . . Slashing Weapon . | . . . Piercing Weapon . | . . . Special Melee Weapon . | . . . Unidentified Prototypes . | . . . Parts Lost 6 | . 3 3 Power 1 | . . 1 Propulsion 2 | . . 2 Utility . | . . . Weapon 3 | . 3 . Highest Loss Streak 2 | . 2 2 Average Slot Usage (%) 78 | . 85 62 Engine 12 | . 14 8 Leg 26 | . 28 24 Device 3 | . 4 . Storage 8 | . 5 14 Processor 4 | . 6 . Protection 7 | . 4 14 Energy Gun 6 | . 9 . Ballistic Gun 7 | . 11 . Naked Turns . | . . . Heaviest Build 14 | 6 14 12 Greatest Support 20 | 20 20 20 Greatest Overweight (x) 2 | . . 2 Average Overweight (x) . | . . . Largest Inventory Capacity 8 | 4 8 8 Average Capacity 5 | 4 5 8 Most Carried 4 | 4 4 3 Average Carried 2 | 2 1 3 Final Capacity 8 | 4 8 8 Final Carried 3 | 2 3 3 Class Distribution -------------------- 100% | Mutant Dominant Class ---------------- Mutant | -10/Materials Mutant | -10/Mines Resources | -11 -10 -10 ----------- Run | Scr Mat Min Matter Collected 290 | 252 38 . Remotely . | . . . Salvage Created 181 | 47 114 20 Parts 11 | 1 7 3 Haulers Intercepted . | . . . Recyclers Shooed . | . . . Parts Field Recycled . | . . . Retrieved Matter . | . . . Parts Self-Destructed . | . . . Prevented . | . . . Kills | -11 -10 -10 ------- Run | Scr Mat Min Combat Hostiles Destroyed 4 | 1 2 1 Melee 1 | . . 1 Guns 3 | 1 2 . Classes Destroyed 3 | 1 1 1 Watcher 1 | . 1 . Swarmer 1 | . . 1 Grunt 3 | 1 2 . Best Kill Streak 2 | 1 2 1 Combat Bots Only 1 | 1 1 1 Max Kills in Single Turn 1 | 1 1 1 Gunslinging . | . . . Exploded . | . . . Melee 1 | . . 1 Uniques/NPCs Destroyed . | . . . Combat | -11 -10 -10 -------- Run | Scr Mat Min Damage Taken 672 | 22 256 394 Core 254 | . 45 209 Absorbed by Shields . | . . . Core Remaining (%) 100 | 100 . . Volleys Fired 20 | 2 18 . Largest 2 | 2 2 . Hottest 70 | 70 70 . Shots Fired 37 | 4 33 . Gun 37 | 4 33 . Cannon . | . . . Launcher . | . . . Special . | . . . Kinetic 20 | 2 18 . Thermal 17 | 2 15 . Explosive . | . . . Electromagnetic . | . . . Robot Hit Streak 4 | 3 4 . Robot Miss Streak 2 | 1 2 . Penetration Max . | . . . Secondary Targets . | . . . Shots Hit Robots 23 | 3 20 . Core Hits 20 | 2 9 9 Critical Hits . | . . . Critical Kills . | . . . Critical Parts Destroyed . | . . . Melee Attacks . | . . . Impact . | . . . Slashing . | . . . Piercing . | . . . Sneak Attacks . | . . . Combat Hostiles . | . . . Follow-up Attacks . | . . . Damage Inflicted 242 | 35 176 31 Guns 211 | 35 176 . Cannons . | . . . Explosions . | . . . Melee . | . . . Ramming 31 | . . 31 Kinetic 113 | 9 104 . Thermal 98 | 26 72 . Explosive . | . . . Electromagnetic . | . . . Impact . | . . . Slashing . | . . . Piercing . | . . . Highest Corruption 1 | . 1 1 Average Corruption 1 | . 1 1 Corruption Purged . | . . . Effects 1 | . 1 . Targeting Errors 1 | . 1 . Overload Shots . | . . . Overflow Damage . | . . . Projectiles . | . . . Explosions . | . . . Melee . | . . . Knockbacks . | . . . Impact . | . . . Kinetic . | . . . Secondary . | . . . Self-Inflicted Damage 13 | . . 13 Shots . | . . . Rammed 14 | . . 14 Targets Rammed 15 | . . 15 Kicked 1 | . . 1 Crushed . | . . . Highest Temperature 208 | 46 208 . Average Temperature 86 | 26 94 . Received Heat Transfer 216 | 12 138 66 Siege Activations . | . . . Robots Corrupted . | . . . Combat Hostiles . | . . . Parts Fried . | . . . Impact Corruptions . | . . . Robots Melted . | . . . Combat Hostiles . | . . . Parts Melted . | . . . Heat Transferred 260 | 74 186 . Parts Sabotaged . | . . . Parts Stolen . | . . . Parts Stripped . | . . . Power Chain Reactions . | . . . Missiles Intercepted . | . . . Alert | -11 -10 -10 ------- Run | Scr Mat Min Peak Influence 90 | 20 90 58 Average Influence 46 | 6 61 39 Maximum Alert Level . | . . . Low Security (%) 100 | 100 100 100 Level 1 . | . . . Level 2 . | . . . Level 3 . | . . . Level 4 . | . . . Level 5 . | . . . High Security . | . . . Max Security . | . . . Squads Dispatched 2 | . 2 . Investigation 1 | . 1 . Extermination . | . . . Reinforcement 1 | . 1 . Assault . | . . . Garrison . | . . . Intercept . | . . . Construction Impeded . | . . . Haulers Reinforced . | . . . Stealth | -11 -10 -10 --------- Run | Scr Mat Min Distress Signals 1 | . 1 . Communications Jammed . | . . . Distress Signals . | . . . Times Spotted 24 | 1 10 13 Peak Tracking Total 6 | 1 5 6 Tactical Retreats 4 | . . 4 Traps | -11 -10 -10 ------- Run | Scr Mat Min Traps Triggered 1 | . 1 . Indirectly . | . . . Trap Hack Attempts . | . . . Triggered . | . . . Disarmed . | . . . Reprogrammed . | . . . Reused . | . . . Traps Extracted . | . . . Installed . | . . . Triggered . | . . . Machines | -11 -10 -10 ---------- Run | Scr Mat Min Machines Disabled . | . . . Max in Single Turn . | . . . Machines Sabotaged . | . . . Garrisons Compromised . | . . . Overloaded Fab Kills . | . . . Fab Network Shutdowns . | . . . Hacking | -11 -10 -10 --------- Run | Scr Mat Min Machines Accessed 2 | . 2 . Terminals 1 | . 1 . Fabricators . | . . . Repair Stations . | . . . Recycling Units 1 | . 1 . Scanalyzers . | . . . Garrison Access . | . . . Total Hacks 8 | . 8 . Successful 7 | . 7 . Failed 1 | . 1 . Catastrophic . | . . . Database Lockouts . | . . . Manual . | . . . Terminals 4 | . 4 . Fabricators . | . . . Repair Stations . | . . . Recycling Units 4 | . 4 . Scanalyzers . | . . . Garrison Access . | . . . Terminal Hacks 4 | . 4 . Record 2 | . 2 . Alert Level 1 | . 1 . Locate Traps 1 | . 1 . Fabricator Hacks . | . . . Repair Station Hacks . | . . . Recycling Unit Hacks 3 | . 3 . Recycle Component 1 | . 1 . Process 1 | . 1 . Report Inventory 1 | . 1 . Scanalyzer . | . . . Garrison Access Hacks . | . . . Unauthorized Hacks . | . . . Terminals . | . . . Fabricators . | . . . Repair Stations . | . . . Recycling Units . | . . . Scanalyzers . | . . . Garrison Access . | . . . Data Cores Recovered . | . . . Used . | . . . Hacking Detections 1 | . 1 . Full Trace Events 1 | . 1 . Feedback Events . | . . . Feedback Blocked . | . . . Robot Schematics Acquired . | . . . Robots Built . | . . . Matter . | . . . Time . | . . . Total Robot Build Rating . | . . . Part Schematics Acquired . | . . . Parts Built . | . . . Matter . | . . . Time . | . . . Total Part Build Rating . | . . . Parts Repaired . | . . . Time . | . . . Parts Recycled 1 | . 1 . Recycled Matter 19 | . 19 . Retrieved Matter . | . . . Retrieved Components . | . . . Parts Scanalyzed . | . . . Part Schematics Acquired . | . . . Parts Damaged . | . . . Bothacking | -11 -10 -10 ------------ Run | Scr Mat Min Used RIF Installer . | . . . Robots Hacked . | . . . Non-combat . | . . . Combat . | . . . Robot Hacks Applied . | . . . Relay Couplers Released . | . . . Robots Rewired . | . . . Allies Hacked . | . . . Hacks Repelled . | . . . Allies | -11 -10 -10 -------- Run | Scr Mat Min Total Allies . | . . . Largest Group . | . . . Highest-Rated Group . | . . . Highest-Rated Ally . | . . . Total Orders . | . . . Ally Attacks . | . . . Total Damage . | . . . Kills . | . . . Allies Corrupted . | . . . Allies Melted . | . . . Intel | -11 -10 -10 ------- Run | Scr Mat Min Robot Analysis Total . | . . . Derelict Logs Recovered . | . . . Drone Launches . | . . . Drone Recoveries . | . . . Exploration | -11 -10 -10 ------------- Run | Scr Mat Min Turns Passed 600 | 102 345 153 Spaces Moved 419 | 76 235 108 Core 31 | 22 . 9 Treads . | . . . Legs 388 | 54 235 99 Wheels . | . . . Hover . | . . . Flight . | . . . Fastest Speed 50 | 50 120 120 Average Speed 116 | 99 120 122 Slowest Speed 150 | 120 120 150 Overloaded Moves . | . . . Propulsion Burnouts . | . . . Robots Hopped . | . . . Cave-ins Triggered . | . . . Exploration Rate (%) 24 | 5 41 26 Regions Visited 2 Branch Regions 1 Pre-discovered Areas . | . . . Known Exits Taken . | . . . Unknown Exits Taken 2 | 1 1 . Scrap Searched . | . . . Spaces Dug . | . . . Terrain Destroyed . | . . . Melee . | . . . Projectile . | . . . AOE . | . . . Actions | -11 -10 -10 --------- Run | Scr Mat Min Total 492 | 98 270 124 Wait 10 | 9 . 1 Move 417 | 75 234 108 Hop . | . . . Pick Up 16 | 7 9 . Fast Attach . | . . . Attach 10 | 5 5 . Detach . | . . . Swap . | . . . Drop 4 | . 4 . Fire 20 | 2 18 . Melee . | . . . Ram 7 | . . 7 Kick 8 | . . 8 Crush . | . . . Escape Stasis . | . . . Rewire . | . . . Trap . | . . . Miscellaneous . | . . . Route ------- -11/Scrapyard -10/Materials (discovered 3 exits: [*Mat] / [*Min x2]) -10/Mines History --------- Turn | Location | Event 2 | -11/Scrapyard | Met Revision 17 59 | -11/Scrapyard | Discovered new exit (range 8) 103 | -11/Scrapyard | Entered Materials 103 | -10/Materials | Discovered new exit (range 7) 225 | -10/Materials | Discovered new exit (range 18) 270 | -10/Materials | Discovered new exit (range 12) 302 | -10/Materials | Build established: Mutant 448 | -10/Materials | Entered Mines 571 | -10/Mines | Core integrity fell below 50% 592 | -10/Mines | Core integrity fell below 20% 601 | -10/Mines | Destroyed by G-47 Trooper with Particle Gun Last Messages --------------- Slammed into S-10 Pest. Lgt. Ion Engine destroyed. Slammed into S-10 Pest. S-10 Pest destroyed. [Achievement: Fist Fight] K-01 Serf collects debris. Slammed into T-07 Excavator. Aluminum Leg permanently disabled. Destabilizing: Short circuit. Aluminum Leg destroyed. Overweight warning: You are carrying more than your current propulsion can efficiently support, which slows movement; see status page ('s') or the top of the parts list for the specific mass vs. support values. Slammed into G-47 Trooper. Broken Aluminum Leg permanently disabled. Destabilizing: Short circuit. Slammed into G-47 Trooper. Broken Aluminum Leg destroyed. Slammed into G-47 Trooper. [Achievement: First Step to Greatness] Map ----- +----------------------------------------------------+ | ??# ##?####???# #??????????????????????????? | | ??# ## #???# #??????????????????????????? | | ??## #????# #??????????????????????????? | | ???### """ #????# #??????????????????????????? | | ?????## """ ##????# #??????????????????????????? | | ??????# """ ##?????# #??????????????????????????? | | ??????# #??????# #??????????????????????????? | | ??????## #?###### #??????????????????????????? | | ???????## #?#[%*% %#??????????????????????????? | | ????????# ###=######??????????????????????????? | | ????????# ## #???????????????????????????????? | | ????????## ## #???????????????????????????????? | | ?????????## ## #???????????????????????????????? | | ??????????### ## #???????????????????????????????? | | ????????????# ## #???????????????????????????????? | | ????????##??# ## #???????????????????????????????? | | ????????# ## ##%#???????????????????????????????? | | ????????# ## #??????###??????????????????????? | | ????????##### ## #??????# ??????????????????????? | | ????????????# ## #??????# ??????????????????????? | | ????????????# ## #??????# #??????????????????????? | | ????????????# #??????# #??????????????????????? | | ????######### ####??????# #??????????????????????? | | ????# ######???# #??????????????????????? | | ????# """ """ #???#g#??????????????????????? | | ???????"" """ ### #???#@#??????????????????????? | | ??????""" """ #?# #???#%#??????????????????????? | | ??????""" """ #?# #???#%#??????????????????????? | | ??????? #?# #???#%#??????????????????????? | | ???????#########?# #???#%#??????????????????????? | | ?????????????????# ##??#%#??????????????????????? | | ????????????????## ##?# #??????????????????????? | | ????????????????# ###s#??????????????????????? | | ????????????????# ## ###????????????????????? | | ????????????????## #????????????????????? | | ?????????????????## #???????????????????? | | ??????????????????# #????????????????? | | ??????????????????# """ #????????????????? | | ??????????????????## """ #????????????????? | | ???????????????????## """ #???????????????? | | ????????????????????## #??????????????? | | ?????????????????????# #??????????????? | | ?????????????????????## ?? #??????????????? | | ??????????????????????### ?????????????????? | | ????????????????????????? ### ?????????????????? | | ????????????????????????? #??## ?????????????????? | | ????????????????????????? #???? ?????????????????? | | ????????????????????????? ??????????????????????? | | ????????????????????????? ??????????????????????? | | ????????????????????????? ???????????????????????? | +----------------------------------------------------+ Best States ------------- Heat Dissipation 35 Energy Generation 10 Energy Capacity 125 Matter Stores 300 Matter Capacity 300 Sight Range 18 Terrain Scan Density 10 Weapon Shielding 33 Evasion (%) 50 Item Schematics ----------------- None Robot Schematics ------------------ None Fabricated ------------ Nothing Alien Tech Used ----------------- None Achievements -------------- First Step to Greatness Fist Fight Challenges ------------ None Game ------ Seed MomentumContainmentNegator Manual? 0 Play Time 00:26:01 Cumulative 2.2 hours Start 2020.08.05 @ 17:03:09 End 2020.08.05 @ 17:31:20 Sessions 1 Manual Loads 0 Difficulty Rogue Special Mode None Game No. 11 Rogue 11 Adventurer 0 Explorer 0 Win Type - Total 0 Types 0/0/0/0/0/0/0 Lore% 2 Gallery% 5 Achievement% 2 Wizard Run 0 Options --------- ASCII 0 Keyboard 0 Movement Numpad Keybinds 0 Fullscreen 2 Font 18/SmallcapsGlow Map View 76x50 Tactical HUD 0 Map Filters NONE Filters NONE Steam 1 RUN: f8b84dfa-c753-418c-a832-e5ca2c5aa39a